bitfinex/quotes_ETHUSD_20241018
["timestamp","ask_amount","ask_price","bid_price","bid_amount"]
[1729258086257,3.81394,2622.0,2621.6,0.5069746]
[1729258086457,3.81394,2622.0,2621.5,4.60873]
[1729258086661,3.81403,2621.9,2621.5,0.7942]
[1729258087449,3.81409,2621.9,2621.5,0.7942]
[1729258087857,3.81409,2621.9,2621.5,4.60877]
[1729258088055,3.81409,2621.9,2621.5,5.451111]
[1729258090446,3.81422,2621.8,2621.5,1.636541]
[1729258090645,3.81422,2621.8,2621.5,0.7942]
[1729258091784,3.81409,2621.9,2621.5,0.7942]
[1729258091956,4.59659,2621.9,2621.5,0.7942]
[1729258092370,0.7825,2621.9,2621.5,0.7942]
[1729258092571,3.81446,2621.6,2621.2,4.59182]
[1729258092804,3.81446,2621.6,2621.2,4.66811322]
[1729258093560,3.81463,2621.5,2621.2,0.85309322]
[1729258093757,3.81448,2621.6,2621.3,1.67742647]
[1729258093983,3.81448,2621.6,2621.4,1.67742647]
[1729258094399,3.8138,2622.1,2621.7,0.7682]
[1729258094569,5.49462647,2622.6,2621.9,1.67742647]
[1729258094769,7.62739,2622.2,2621.7,2.44562647]
[1729258095095,3.8138,2622.1,2621.7,0.7682]
[1729258095482,3.8138,2622.1,2621.7,2.44562647]
[1729258095898,3.81373,2622.1,2621.7,0.7682]
[1729258096400,3.8139,2622.0,2621.7,0.7682]
[1729258096611,3.81373,2622.1,2621.7,2.44562647]
[1729258096961,3.81373,2622.1,2621.7,0.7682]
[1729258097507,3.81373,2622.1,2621.7,2.44562647]
[1729258097867,3.81373,2622.1,2621.7,6.25993647]
[1729258098654,3.81373,2622.1,2621.8,1.67742647]
[1729258098901,3.81373,2622.1,2621.7,6.25993647]
[1729258099907,4.59471,2622.2,2621.7,6.25993647]
[1729258100060,4.59471,2622.2,2621.8,1.67742647]
[1729258100266,3.81373,2622.1,2621.8,1.67742647]
[1729258100687,3.81373,2622.1,2621.7,2.44562647]
[1729258100889,3.8139,2622.0,2621.7,2.44562647]
[1729258101269,3.8139,2622.0,2621.7,0.7682]
[1729258101666,3.8139,2622.0,2621.7,2.44562647]
[1729258101889,3.8139,2622.0,2621.7,0.7682]
[1729258102293,3.81407,2621.9,2621.5,6.29442647]
[1729258103375,3.81417,2621.8,2621.5,2.47982647]
[1729258104189,3.81405,2621.9,2621.5,6.29442647]
[1729258104394,3.81382,2622.1,2621.8,1.67742647]
[1729258104723,3.81373,2622.1,2621.9,0.8071]
[1729258106323,3.81403,2621.9,2621.7,0.7841]
[1729258106525,3.81403,2621.9,2621.5,0.7841]
[1729258106725,1.11672,2622.5,2621.5,0.7841]
[1729258106726,0.8154,2622.1,2621.7,1.67742647]
[1729258106882,3.81403,2621.9,2621.6,1.67742647]
[1729258107832,4.60187,2622.3,2621.8,1.67742647]
[1729258108126,3.81382,2622.1,2621.8,1.67742647]
[1729258108518,3.81382,2622.1,2621.7,1.67742647]
[1729258109119,3.81382,2622.1,2621.8,1.67742647]
[1729258109681,3.81382,2622.1,2621.8,2.50742647]
[1729258110793,3.81402,2621.9,2621.6,2.50742647]
[1729258111098,3.81388,2622.0,2621.7,1.67742647]
[1729258111331,3.81388,2622.0,2621.8,1.67742647]
[1729258111636,3.81369,2622.2,2621.9,1.67742647]
[1729258111837,3.81341,2622.4,2622.0,1.67742647]
[1729258111999,3.81344,2622.3,2622.0,0.8133]
[1729258112335,3.81362,2622.2,2622.0,0.8133]
[1729258113606,3.81346,2622.3,2622.0,2.49072647]
[1729258113801,3.81361,2622.2,2622.0,0.8133]
[1729258114595,3.81361,2622.2,2621.8,2.47762647]
[1729258114596,3.81367,2622.2,2621.8,2.47762647]
[1729258114797,3.81389,2622.0,2621.8,0.8002]
[1729258115221,3.81398,2622.0,2621.8,0.8002]
[1729258115644,2.95521362,2622.0,2621.8,0.8002]
[1729258116342,3.81354,2622.3,2621.9,5.49144647]
[1729258116643,3.81354,2622.3,2622.0,1.67742647]
[1729258116946,3.81331,2622.4,2622.2,1.67742647]
[1729258117097,3.81331,2622.4,2622.2,0.8002]
[1729258117098,3.81344,2622.3,2622.2,0.8002]
[1729258117299,3.81331,2622.4,2622.2,0.8002]
[1729258117300,7.62678,2622.4,2622.2,0.8002]
[1729258117517,7.62676,2622.4,2622.2,0.8002]
[1729258117744,3.81337,2622.4,2622.2,0.8002]
[1729258121732,3.81292,2622.7,2622.3,0.96784233]
[1729258122086,3.81273,2622.8,2622.4,3.81328]
[1729258122216,3.81273,2622.8,2622.3,2.15823145]
[1729258122558,3.81273,2622.8,2622.3,4.78119233]
[1729258122857,3.81287,2622.7,2622.3,4.78119233]
[1729258123010,3.81287,2622.7,2622.4,1.10542554]
[1729258126264,3.81287,2622.7,2622.2,10.08658305]
[1729258126470,3.81287,2622.7,2622.2,8.89619393]
[1729258126762,3.81287,2622.7,2622.2,10.08658305]
[1729258127066,3.81287,2622.7,2622.3,3.81342]
[1729258127727,3.81304,2622.6,2622.2,5.08267393]
[1729258127927,3.81304,2622.6,2622.3,0.96783533]
[1729258128256,4.62428,2623.0,2622.3,0.96783533]
[1729258128454,3.81308,2622.6,2622.2,0.8002]
[1729258129067,3.81315,2622.5,2622.2,0.8002]
[1729258130022,3.81302,2622.6,2622.2,0.8002]
[1729258130457,3.81317,2622.5,2622.2,0.8002]
[1729258130634,3.81317,2622.5,2622.2,1.38063091]
[1729258130854,3.1290627,2623.2,2622.2,1.38063091]
[1729258130855,0.785,2622.6,2622.2,0.8002]
[1729258131024,3.81338,2622.4,2622.0,0.7926]
[1729258132445,3.81345,2622.3,2622.0,0.7926]
[1729258133824,3.81361,2622.2,2622.0,0.7926]
[1729258134225,3.81373,2622.1,2622.0,0.7926]
[1729258134427,7.62728,2622.2,2621.9,0.05722081]
[1729258134661,3.81361,2622.2,2621.9,0.05722081]
[1729258135179,3.81388,2622.0,2621.9,0.05722081]
[1729258137819,3.81388,2622.0,2621.9,1.73402664]
[1729258138150,7.62757,2622.1,2621.9,1.73402664]
[1729258138498,7.62759,2622.1,2621.9,1.73402664]
[1729258139244,3.81376,2622.1,2621.9,1.73402664]
[1729258139452,7.62758,2622.1,2621.9,1.73402664]
[1729258140454,3.81388,2622.0,2621.9,0.05722081]
[1729258140625,3.81388,2622.0,2621.9,1.73402664]
[1729258141213,3.81368,2622.2,2621.9,1.73402664]
[1729258141417,3.81368,2622.2,2622.1,1.67680583]
[1729258141740,3.81368,2622.2,2621.9,0.05722081]
[1729258141741,3.81381,2622.1,2622.0,1.67680583]
[1729258142936,3.81381,2622.1,2621.9,1.73402664]
[1729258143108,3.81388,2622.0,2621.9,1.73402664]
[1729258144748,3.81388,2622.0,2621.9,0.05722081]
[1729258144919,5.396544,2622.0,2621.9,0.05722081]
[1729258145318,4.63378,2622.0,2621.9,0.05722081]
[1729258145508,4.63130872,2622.0,2621.9,0.05572868]
[1729258146405,0.8199,2622.0,2621.4,1.97258912]
[1729258146624,0.8199,2622.0,2621.5,1.67680583]
[1729258146625,3.81432,2621.7,2621.5,1.67680583]
[1729258146835,3.81432,2621.7,2621.6,1.67680583]
[1729258147040,3.81432,2621.7,2621.5,1.67680583]
[1729258147253,3.81432,2621.7,2621.4,2.45900583]
[1729258147609,3.81442,2621.7,2621.5,1.67680583]
[1729258148940,3.81446,2621.6,2621.5,1.67680583]
[1729258149108,3.81446,2621.6,2621.4,2.45900583]
[1729258149555,3.81446,2621.6,2621.5,1.67680583]
[1729258149843,3.81419,2621.8,2621.5,1.67680583]
[1729258149844,3.81433,2621.7,2621.5,1.67680583]
[1729258150053,3.8141,2621.9,2621.6,1.67680583]
[1729258150251,3.81417,2621.8,2621.7,1.67680583]
[1729258150852,3.81417,2621.8,2621.6,1.67680583]
[1729258151209,3.81417,2621.8,2621.5,1.67680583]
[1729258153024,3.81428,2621.8,2621.5,1.67680583]
[1729258153226,3.81432,2621.7,2621.5,1.67680583]
[1729258155548,3.81402,2621.9,2621.5,1.67680583]
[1729258155752,3.81429,2621.8,2621.5,1.67680583]
[1729258155961,3.81443,2621.7,2621.4,2.45900583]
[1729258156141,3.81481,2621.4,2621.1,0.05723755]
[1729258156527,3.81481,2621.4,2621.1,1.73404338]
[1729258156731,3.81467,2621.5,2621.1,0.05723755]
[1729258157363,3.81467,2621.5,2621.2,1.67680583]
[1729258158158,3.81467,2621.5,2621.3,7.6297]
[1729258159457,3.81467,2621.5,2621.3,9.30650583]
[1729258159831,7.62935,2621.5,2621.3,7.6297]
[1729258160032,3.81467,2621.5,2621.3,7.6297]
[1729258160558,3.81467,2621.5,2621.3,9.30650583]
[1729258161359,3.81467,2621.5,2621.3,7.6297]
[1729258161555,3.81467,2621.5,2621.3,9.30650583]
[1729258161923,4.57072,2621.6,2621.3,9.30650583]
[1729258162115,4.5708,2621.6,2621.3,7.6297]
[1729258162462,4.57067,2621.6,2621.3,7.6297]
[1729258164550,3.81462,2621.5,2621.3,7.6297]
[1729258165176,4.57067,2621.6,2621.3,7.6297]
[1729258165388,4.57067,2621.6,2621.3,8.94758434]
[1729258165549,3.81465,2621.5,2621.3,8.94758434]
[1729258165955,3.81465,2621.5,2621.3,7.6297]
[1729258166324,0.7562,2621.6,2621.3,7.6297]
[1729258166432,4.57067,2621.6,2621.3,7.6297]
[1729258166637,3.81465,2621.5,2621.3,7.6297]
[1729258166883,3.81475,2621.4,2621.3,7.6297]
[1729258170297,7.29289641,2621.4,2621.3,7.6297]
[1729258177911,5.61609058,2621.4,2621.3,7.6297]
[1729258178217,4.60985,2621.4,2621.3,7.6297]
[1729258178821,3.81475,2621.4,2621.3,7.6297]
[1729258180389,5.49155583,2621.4,2621.3,7.6297]
[1729258180601,3.81475,2621.4,2621.3,7.6297]
[1729258180800,5.49155583,2621.4,2621.3,7.6297]
[1729258181298,7.441547,2621.4,2621.3,7.6297]
[1729258183502,6.26455583,2621.4,2621.3,7.6297]
[1729258184691,3.81475,2621.4,2621.3,7.6297]
[1729258184897,5.49155583,2621.4,2621.3,7.6297]
[1729258185510,6.29265583,2621.4,2621.3,7.6297]
[1729258187652,9.29265583,2621.4,2621.3,7.6297]
[1729258187837,10.772067,2621.4,2621.3,7.6297]
[1729258192771,10.782067,2621.4,2621.3,1.90735]
[1729258192979,10.782067,2621.4,2620.8,0.0190874]
[1729258192980,4.63698,2620.9,2620.8,0.0190874]
[1729258193475,3.81621,2620.4,2620.3,0.8139]
[1729258193764,5.49284583,2620.6,2620.3,0.8139]
[1729258193964,1.67680583,2620.6,2620.3,0.8139]
[1729258194331,3.81613,2620.5,2620.3,0.8139]
[1729258194767,5.49269583,2620.7,2620.3,0.8139]
[1729258195071,3.81594,2620.6,2620.3,0.8139]
[1729258196563,7.63196,2620.6,2620.3,0.8139]
[1729258196765,1.67680583,2620.5,2620.3,0.8139]
[1729258196970,3.81592,2620.6,2620.3,0.8139]
[1729258197977,7.63195,2620.6,2620.3,0.8139]
[1729258198276,3.81592,2620.6,2620.3,0.8139]
[1729258198573,7.63195,2620.6,2620.3,0.8139]
[1729258198772,3.81592,2620.6,2620.3,0.8139]
[1729258199368,1.67680583,2620.7,2620.3,0.8139]
[1729258199369,5.49257583,2620.7,2620.3,0.8139]
[1729258199737,1.67680583,2620.6,2620.3,0.8139]
[1729258199935,5.49265583,2620.7,2620.3,0.8139]
[1729258200133,9.30851583,2620.7,2620.3,0.8139]
[1729258200337,3.81593,2620.6,2620.3,0.8139]
[1729258200573,3.81593,2620.6,2620.0,6.31000583]
[1729258200759,7.63115,2620.9,2620.4,3.81614]
[1729258200961,7.63115,2620.9,2620.3,0.7632]
[1729258200962,3.81574,2620.8,2620.5,0.7632]
[1729258201331,5.49235583,2620.9,2620.5,0.7632]
[1729258201563,7.63115,2620.9,2620.5,0.7632]
[1729258201761,5.49235583,2620.9,2620.5,0.7632]
[1729258201962,4.62504,2621.2,2620.6,3.81581]
[1729258202187,4.62504,2621.2,2620.5,3.27957483]
[1729258202188,3.81549,2620.9,2620.5,1.602769]
[1729258202348,1.67680583,2621.1,2620.5,5.418729]
[1729258202534,3.81535,2621.0,2620.6,3.81589]
[1729258202872,3.81535,2621.0,2620.6,1.09114248]
[1729258203265,3.81552,2620.9,2620.6,1.09114248]
[1729258204146,3.81578,2620.7,2620.5,0.7632]
[1729258204535,3.81578,2620.7,2620.3,0.8087]
[1729258204743,3.81642,2620.3,2620.1,0.8087]
[1729258204938,3.81671,2620.1,2619.8,0.7566]
[1729258205156,4.63139,2620.5,2619.6,0.7566]
[1729258205157,3.81635,2620.3,2619.6,0.7566]
[1729258205355,3.81716,2619.8,2619.6,0.7566]
[1729258205539,3.81683,2620.0,2619.6,0.7566]
[1729258205540,3.81679,2620.0,2619.6,0.7566]
[1729258205764,0.7827,2620.1,2619.6,0.7566]
[1729258206086,3.81679,2620.0,2619.6,0.7566]
[1729258206397,3.81696,2619.9,2619.6,0.7566]
[1729258206536,3.81675,2620.1,2619.6,0.7566]
[1729258206736,3.81675,2620.1,2619.6,4.57397]
[1729258207084,4.58127,2620.5,2620.0,0.8282]
[1729258207290,7.63223,2620.5,2620.0,4.64498]
[1729258207473,3.81624,2620.4,2620.0,0.8282]
[1729258207632,3.81615,2620.5,2620.0,0.8282]
[1729258207836,3.40960474,2620.6,2620.0,0.8282]
[1729258208193,3.40960474,2620.6,2619.7,0.7965]
[1729258208194,3.81664,2620.1,2619.7,0.7965]
[1729258208478,3.81679,2620.0,2619.7,0.7965]
[1729258209344,3.81618,2620.5,2619.7,0.7965]
[1729258209687,3.81629,2620.4,2619.9,0.7953]
[1729258209837,3.81642,2620.3,2619.9,0.7953]
[1729258210045,3.81627,2620.4,2619.9,4.61214]
[1729258210453,3.81606,2620.5,2619.9,5.455044]
[1729258210658,4.61794,2620.6,2619.9,5.455044]
[1729258210659,3.81622,2620.4,2619.9,5.455044]
[1729258210964,3.81622,2620.4,2620.0,3.81678]
[1729258211364,3.81636,2620.3,2619.9,5.455134]
[1729258211776,3.81623,2620.4,2619.9,5.455134]
[1729258211978,3.81608,2620.5,2620.0,3.81671]
[1729258212191,3.81615,2620.5,2620.1,0.7513]
[1729258212755,3.81622,2620.4,2620.1,0.7513]
[1729258213277,7.22524474,2620.8,2620.1,0.7513]
[1729258213278,0.7723,2620.6,2620.1,0.7513]
[1729258213479,3.81636,2620.3,2620.1,0.7513]
[1729258213680,3.81686,2620.0,2619.7,0.7936]
[1729258213996,3.81686,2620.0,2619.3,1.2476668]
[1729258213997,3.81733,2619.7,2619.4,0.7936]
[1729258214197,3.81742,2619.6,2619.4,0.7936]
[1729258214385,3.81766,2619.4,2619.3,0.05727768]
[1729258214555,7.22655474,2619.9,2619.3,0.05727768]
[1729258214755,3.81752,2619.5,2619.3,0.05727768]
[1729258215160,3.81748,2619.6,2619.3,0.05727768]
[1729258215355,3.81766,2619.4,2619.3,0.05727768]
[1729258216275,3.8179,2619.3,2619.1,0.42627213]
[1729258216471,3.81795,2619.2,2619.1,0.42627213]
[1729258216688,4.581535,2619.2,2619.1,0.42627213]
[1729258217505,5.384835,2619.2,2619.1,0.42627213]
[1729258220672,3.81782,2619.3,2619.1,0.42627213]
[1729258220873,3.81762,2619.5,2619.1,0.42627213]
[1729258221173,3.81753,2619.5,2619.1,4.24428213]
[1729258221518,3.81795,2619.2,2619.1,0.42627213]
[1729258222281,6.81795,2619.2,2619.1,0.42627213]
[1729258222506,8.30100947,2619.2,2619.1,0.42627213]
[1729258222812,5.30100947,2619.2,2619.1,0.42627213]
[1729258225971,10.02516208,2619.2,2619.1,2.13e-06]
[1729258226370,10.02516208,2619.2,2619.0,0.402753]
[1729258226371,7.3781,2619.1,2619.0,5.13e-06]
[1729258226587,13.27636542,2619.1,2619.0,5.13e-06]
[1729258226819,9.86676068,2619.1,2619.0,5.13e-06]
[1729258227515,9.31676068,2619.1,2619.0,5.13e-06]
[1729258227737,9.30676068,2619.1,2619.0,5.13e-06]
[1729258227884,3.8181,2619.1,2619.0,5.13e-06]
[1729258230766,7.63602,2619.2,2619.0,5.13e-06]
[1729258231051,3.8181,2619.1,2619.0,5.13e-06]
[1729258233323,3.81798,2619.2,2619.0,5.13e-06]
[1729258233324,3.7965,2619.7,2619.0,5.13e-06]
[1729258233516,3.81779,2619.4,2619.0,5.13e-06]
[1729258233716,3.81781,2619.3,2619.0,5.13e-06]
[1729258234950,3.81797,2619.2,2619.0,5.13e-06]
[1729258235553,3.81737,2619.6,2619.0,5.13e-06]
[1729258235712,0.761387,2619.6,2619.0,5.13e-06]
[1729258236057,3.8181,2619.1,2619.0,5.13e-06]
[1729258237849,0.761387,2619.6,2619.0,5.13e-06]
[1729258237850,4.57345,2620.0,2619.1,0.7845]
[1729258238155,3.81694,2619.9,2619.4,4.60206]
[1729258238362,3.81682,2620.0,2619.5,3.81743]
[1729258238661,3.81695,2619.9,2619.4,5.45177253]
[1729258238825,3.81695,2619.9,2619.4,1.63412253]
[1729258238826,3.81708,2619.8,2619.4,1.63412253]
[1729258239151,3.81695,2619.9,2619.4,1.63412253]
[1729258239342,3.81715,2619.8,2619.4,1.63412253]
[1729258240266,3.81695,2619.9,2619.4,1.63412253]
[1729258240267,3.817,2619.9,2619.5,0.54518225]
[1729258240550,4.92944674,2620.3,2619.6,4.6501133]
[1729258240551,3.8165,2620.2,2619.6,4.6501133]
[1729258240752,3.8165,2620.2,2619.6,4.57377]
[1729258240928,3.8165,2620.2,2619.7,0.51189522]
[1729258241125,7.63309,2620.2,2619.7,4.32910522]
[1729258241315,3.81665,2620.1,2619.7,4.32910522]
[1729258241513,4.58055,2620.6,2619.7,4.32910522]
[1729258241514,3.81606,2620.5,2619.7,4.32910522]
[1729258241762,3.81621,2620.4,2619.7,4.32903522]
[1729258241920,3.81635,2620.3,2619.8,3.81708]
[1729258242255,3.81658,2620.2,2619.7,0.51189522]
[1729258242463,3.8167,2620.1,2619.7,0.51189522]
[1729258242614,3.81658,2620.2,2619.7,4.32904522]
[1729258242832,3.81723,2619.7,2619.6,0.7564]
[1729258243038,3.81739,2619.6,2619.4,0.7957]
[1729258243354,3.81739,2619.6,2619.1,0.7957]
[1729258243355,3.81787,2619.3,2619.1,0.7957]
[1729258243969,3.81752,2619.5,2619.1,0.7957]
[1729258244177,0.381739,2619.6,2619.1,0.7957]
[1729258244382,3.81737,2619.6,2619.1,4.61369]
[1729258244677,3.81745,2619.6,2619.1,4.61369]
[1729258244855,3.81754,2619.5,2619.1,0.7957]
[1729258245038,3.81795,2619.2,2619.1,0.7957]
[1729258245262,0.763478,2619.6,2619.1,0.7957]
[1729258245263,3.81781,2619.3,2619.1,0.7957]
[1729258245459,3.81795,2619.2,2619.1,0.7957]
[1729258245788,3.8181,2619.1,2619.0,5.13e-06]
[1729258246891,4.581705,2619.1,2619.0,5.13e-06]
[1729258252591,3.0,2619.5,2619.0,5.13e-06]
[1729258252777,3.81783,2619.3,2619.0,5.13e-06]
[1729258252969,3.81768,2619.4,2619.0,3.81823513]
[1729258253170,3.81768,2619.4,2619.0,5.13e-06]
[1729258253369,3.81754,2619.5,2619.0,5.13e-06]
[1729258253589,3.81767,2619.4,2619.0,3.81823513]
[1729258254164,3.81749,2619.6,2619.0,3.81823513]
[1729258254165,3.81752,2619.5,2619.0,3.81823513]
[1729258254694,3.81752,2619.5,2619.0,5.13e-06]
[1729258254894,3.81766,2619.4,2619.0,5.13e-06]
[1729258255107,3.81782,2619.3,2619.0,5.13e-06]
[1729258255689,3.8181,2619.1,2619.0,5.13e-06]
[1729258257473,3.81795,2619.2,2619.0,5.13e-06]
[1729258258994,3.81797,2619.2,2619.0,5.13e-06]
[1729258259810,3.81776,2619.4,2619.0,5.13e-06]
[1729258260112,3.81802,2619.2,2619.0,5.13e-06]
[1729258260698,3.81782,2619.3,2619.0,5.13e-06]
[1729258260900,3.81722,2619.8,2619.2,3.81783]
[1729258261216,3.81742,2619.6,2619.1,4.57299]
[1729258261397,3.81742,2619.6,2619.1,5.41211751]
[1729258261914,3.81742,2619.6,2619.2,3.81795]
[1729258262069,3.81717,2619.8,2619.2,3.81795]
[1729258262070,3.81725,2619.7,2619.2,3.81795]
[1729258262268,3.81725,2619.7,2619.1,5.41211751]
[1729258262469,3.81725,2619.7,2619.3,3.8178]
[1729258262708,3.81725,2619.7,2619.2,3.8942303]
[1729258262899,3.81725,2619.7,2619.2,3.81788]
[1729258263889,3.81725,2619.7,2619.1,0.755]
[1729258263890,3.81744,2619.6,2619.1,0.755]
[1729258264086,0.7869,2619.6,2619.1,0.755]
[1729258264408,3.81773,2619.4,2619.1,0.755]
[1729258264607,3.81749,2619.6,2619.2,3.81795]
[1729258264813,3.81709,2619.8,2619.3,0.7894]
[1729258265124,6.81696,2619.9,2619.5,3.8175]
[1729258265271,3.81687,2620.0,2619.4,3.81759]
[1729258265480,3.81687,2620.0,2619.5,0.7533]
[1729258265701,3.81674,2620.1,2619.6,3.81726]
[1729258266009,3.81719,2619.8,2619.5,0.7533]
[1729258266209,3.81695,2619.9,2619.5,0.7533]
[1729258266574,3.81712,2619.8,2619.5,0.7533]
[1729258266770,3.81695,2619.9,2619.5,4.57082]
[1729258266988,3.81708,2619.8,2619.5,0.7533]
[1729258267195,3.81695,2619.9,2619.5,0.7533]
[1729258267507,3.81722,2619.8,2619.5,0.7533]
[1729258267671,3.81737,2619.6,2619.5,0.7533]
[1729258267882,3.8171,2619.8,2619.5,0.7533]
[1729258268081,0.83718543,2619.9,2619.5,0.7533]
[1729258268323,3.81737,2619.6,2619.5,0.7533]
[1729258268728,3.81737,2619.7,2619.5,0.7533]
[1729258269301,0.83718543,2619.9,2619.5,0.7533]
[1729258269609,3.81704,2619.9,2619.5,0.7533]
[1729258270006,3.8168,2620.0,2619.5,0.7533]
[1729258270007,3.8168,2620.0,2619.5,4.57081]
[1729258270193,3.81701,2619.9,2619.5,0.7533]
[1729258270386,3.81693,2619.9,2619.5,0.7533]
[1729258270723,3.81681,2620.0,2619.5,4.57079]
[1729258270888,3.81681,2620.0,2619.6,3.81731]
[1729258271237,3.31980755,2621.4,2620.0,3.81678]
[1729258271238,3.81613,2620.5,2620.0,3.81678]
[1729258271567,3.81613,2620.5,2620.1,0.7991]
[1729258271916,4.37044313,2621.2,2620.1,0.7991]
[1729258271917,3.81593,2620.6,2620.1,0.7991]
[1729258272116,3.81607,2620.5,2620.1,0.7991]
[1729258272429,3.81621,2620.4,2620.1,1.260676]
[1729258272726,3.81648,2620.3,2620.1,0.7991]
[1729258273432,3.81622,2620.4,2620.1,0.7991]
[1729258274057,3.81649,2620.3,2620.1,0.7991]
[1729258274182,3.81686,2620.0,2619.7,0.7715]
[1729258274387,3.81656,2620.2,2619.7,0.7715]
[1729258274388,3.8166,2620.2,2619.7,4.58865]
[1729258274626,7.63264,2620.4,2619.9,3.81691]
[1729258274788,3.81636,2620.3,2619.9,0.07632968]
[1729258274992,3.81631,2620.4,2619.8,4.5885]
[1729258275217,3.81638,2620.3,2619.9,0.45885]
[1729258275535,4.37044313,2620.6,2619.8,0.7715]
[1729258275699,3.81679,2620.0,2619.8,0.7715]
[1729258276034,3.81664,2620.1,2619.4,0.8015]
[1729258276216,3.81752,2619.5,2619.4,0.8015]
[1729258276425,3.81751,2619.6,2619.4,0.8015]
[1729258277026,3.81718,2619.8,2619.4,0.8015]
[1729258277187,3.8173,2619.7,2619.4,0.87770894]
[1729258277393,3.81718,2619.8,2619.4,0.87770894]
[1729258277702,7.63439,2619.8,2619.4,0.8015]
[1729258277887,3.81732,2619.7,2619.4,0.8015]
[1729258278089,3.81718,2619.8,2619.4,0.8015]
[1729258278300,3.81752,2619.5,2619.4,0.8015]
[1729258278489,3.81766,2619.4,2619.3,0.05727685]
[1729258280148,3.8181,2619.1,2619.0,5.13e-06]
[1729258282803,3.81778,2619.4,2619.0,5.13e-06]
[1729258283004,3.8179,2619.3,2619.0,0.07636617]
[1729258283418,3.81759,2619.5,2619.0,0.54721266]
[1729258283619,3.81759,2619.5,2619.1,0.8262]
[1729258283916,3.81782,2619.3,2619.1,0.8262]
[1729258284243,3.81737,2619.6,2619.1,0.8262]
[1729258284408,3.81795,2619.2,2619.1,0.8262]
[1729258285841,3.81777,2619.4,2619.1,0.8262]
[1729258286215,3.81761,2619.5,2619.1,1.6801178]
[1729258287086,3.81716,2619.8,2619.2,0.82147846]
[1729258287255,3.81716,2619.8,2619.4,0.7953]
[1729258287667,3.81697,2619.9,2619.5,0.0763414]
[1729258288001,4.60129,2620.4,2619.2,3.81786]
[1729258288002,3.81665,2620.1,2619.7,3.8172]
[1729258288205,3.81665,2620.1,2619.6,0.7953]
[1729258288353,0.7508,2620.9,2619.9,3.81691]
[1729258288554,7.63254,2620.4,2620.0,0.8047]
[1729258288754,3.81636,2620.3,2620.0,0.8047]
[1729258289704,3.81614,2620.5,2620.0,0.8047]
[1729258289853,3.81637,2620.3,2620.0,0.8047]
[1729258292517,3.81664,2620.1,2620.0,0.8047]
[1729258292672,4.198304,2620.1,2620.0,0.8047]
[1729258292867,3.81703,2619.9,2619.7,0.754]
[1729258293328,3.81708,2619.8,2619.7,0.754]
[1729258293685,3.81737,2619.6,2619.3,0.754]
[1729258294075,3.81766,2619.4,2619.3,0.754]
[1729258294625,3.81803,2619.2,2619.0,5.13e-06]
[1729258295125,3.8181,2619.1,2619.0,0.82800513]
[1729258295518,3.8181,2619.1,2619.0,5.13e-06]
[1729258296487,4.581713,2619.1,2619.0,5.13e-06]
[1729258296730,5.391613,2619.1,2619.0,5.13e-06]
[1729258296910,9.76205613,2619.1,2619.0,5.13e-06]
[1729258297112,12.76205613,2619.1,2619.0,5.13e-06]
[1729258297279,13.12195133,2619.1,2619.0,5.13e-06]
[1729258297480,3.8197,2618.0,2617.9,0.46585422]
[1729258300374,3.81957,2618.1,2617.9,0.46585422]
[1729258300725,3.8197,2618.0,2617.9,0.46585422]
[1729258301419,3.81992,2617.9,2617.5,0.8641165]
[1729258301717,3.82012,2617.8,2617.5,0.8641165]
[1729258301879,3.81979,2618.0,2617.5,0.8641165]
[1729258302080,3.81966,2618.1,2617.5,0.8641165]
[1729258302308,3.81966,2618.1,2617.6,3.8202]
[1729258302577,4.37044313,2618.5,2617.5,0.8641165]
[1729258302809,3.81974,2618.0,2617.5,0.8641165]
[1729258303010,7.64012,2617.8,2617.5,0.8641165]
[1729258303222,3.82003,2617.8,2617.5,0.8641165]
[1729258304004,3.81989,2617.9,2617.5,0.8641165]
[1729258304206,7.63961,2618.0,2617.5,0.8641165]
[1729258304407,7.63961,2618.0,2617.5,4.6845265]
[1729258304623,3.81956,2618.1,2617.5,4.6845265]
[1729258304782,3.81912,2618.4,2617.7,0.7852]
[1729258305129,3.81912,2618.4,2617.8,7.63984]
[1729258305499,7.63833,2618.4,2617.8,7.63984]
[1729258305681,7.63833,2618.4,2617.8,3.81991]
[1729258305682,3.81938,2618.3,2617.8,3.81991]
[1729258305886,3.81912,2618.4,2617.8,3.81991]
[1729258306238,3.81949,2618.2,2617.7,0.7852]
[1729258306533,3.81949,2618.2,2617.7,4.60532]
[1729258306897,3.81927,2618.3,2617.8,3.8963822]
[1729258307285,3.81982,2618.0,2617.7,0.7852]
[1729258307625,3.81982,2618.0,2617.5,0.0573165]
[1729258307626,3.82008,2617.8,2617.5,0.0573165]
[1729258308525,3.81985,2617.9,2617.4,4.65091]
[1729258308912,3.81985,2617.9,2617.4,8.47137]
[1729258309233,3.81985,2617.9,2617.4,5.497997]
[1729258309735,3.81985,2617.9,2617.4,9.318507]
[1729258310030,3.81985,2617.9,2617.4,5.497997]
[1729258310233,3.81985,2617.9,2617.4,9.318507]
[1729258310415,3.81985,2617.9,2617.4,5.497997]
[1729258311132,3.82015,2617.7,2617.4,0.8304]
[1729258311286,3.8203,2617.6,2617.4,0.8304]
[1729258311487,4.37044313,2617.9,2617.3,0.05732111]
[1729258311683,3.82058,2617.4,2617.3,0.05732111]
[1729258312297,3.82054,2617.5,2617.3,0.05732111]
[1729258312513,4.667578,2617.5,2617.3,0.05732111]
[1729258312817,4.667488,2617.5,2617.3,0.05732111]
[1729258313953,3.8203,2617.6,2617.3,0.05732111]
[1729258314447,4.63997,2617.9,2617.3,0.05732111]
[1729258314629,3.82016,2617.7,2617.3,0.05732111]
[1729258315000,8.18991313,2618.2,2617.4,0.8081]
[1729258315001,3.82009,2617.8,2617.4,0.8081]
[1729258315233,3.81996,2617.9,2617.4,4.62861]
[1729258315432,3.8198,2618.0,2617.4,4.62861]
[1729258315628,3.82002,2617.8,2617.4,4.62861]